[Event "Late-Titled-Tuesday-Blitz-August-29-2023"]
[Site "Chess.com"]
[Date "2023.08.29"]
[Round "5"]
[White "Arystanner"]
[Black "dropstoneDP"]
[Result "1-0"]
[WhiteElo "2868"]
[BlackElo "2963"]
[TimeControl "180+1"]
[EndTime "14:54:48 PDT"]
[Termination "Arystanner won by resignation"]

1. d4 {[%clk 0:03:00.9]} 1... d5 {[%clk 0:02:13.6]} 2. Nf3 {[%clk 0:03:00]} 2...
Nf6 {[%clk 0:02:11.6]} 3. c4 {[%clk 0:03:00.4]} 3... e6 {[%clk 0:02:11.8]} 4.
Nc3 {[%clk 0:03:00]} 4... c5 {[%clk 0:02:12.3]} 5. e3 {[%clk 0:02:59.5]} 5...
Nc6 {[%clk 0:02:11.7]} 6. a3 {[%clk 0:02:59.5]} 6... Ne4 {[%clk 0:02:06.6]} 7.
cxd5 {[%clk 0:02:57.1]} 7... exd5 {[%clk 0:02:06.3]} 8. Bd3 {[%clk 0:02:56.7]}
8... Bf5 {[%clk 0:01:59.9]} 9. O-O {[%clk 0:02:51]} 9... cxd4 {[%clk 0:01:54.5]}
10. exd4 {[%clk 0:02:50.6]} 10... Bd6 {[%clk 0:01:53.4]} 11. Re1 {[%clk
0:02:48.1]} 11... O-O {[%clk 0:01:51.4]} 12. Nxe4 {[%clk 0:02:48.1]} 12... dxe4
{[%clk 0:01:52.3]} 13. Bxe4 {[%clk 0:02:48.6]} 13... Qd7 {[%clk 0:01:52]} 14.
Qd3 {[%clk 0:02:42.5]} 14... Bxe4 {[%clk 0:01:49.9]} 15. Rxe4 {[%clk 0:02:41.5]}
15... Qf5 {[%clk 0:01:49.6]} 16. Bd2 {[%clk 0:02:39.5]} 16... Rae8 {[%clk
0:01:47.7]} 17. Rae1 {[%clk 0:02:39.8]} 17... Rxe4 {[%clk 0:01:48]} 18. Qxe4
{[%clk 0:02:38.9]} 18... Qxe4 {[%clk 0:01:47.2]} 19. Rxe4 {[%clk 0:02:39.8]}
19... Rd8 {[%clk 0:01:47.7]} 20. Kf1 {[%clk 0:02:39.6]} 20... f6 {[%clk
0:01:43.2]} 21. h4 {[%clk 0:02:33.9]} 21... h5 {[%clk 0:01:42.2]} 22. Bc3 {[%clk
0:02:28.3]} 22... Kf7 {[%clk 0:01:41.8]} 23. Nd2 {[%clk 0:02:26.6]} 23... b5
{[%clk 0:01:40.1]} 24. Nb3 {[%clk 0:02:17]} 24... b4 {[%clk 0:01:39.8]} 25. axb4
{[%clk 0:02:16.9]} 25... Nxb4 {[%clk 0:01:40.7]} 26. Re1 {[%clk 0:02:07.2]}
26... Rb8 {[%clk 0:01:39.2]} 27. Ra1 {[%clk 0:02:01.3]} 27... a6 {[%clk
0:01:33]} 28. Nc5 {[%clk 0:01:57.7]} 28... Bxc5 {[%clk 0:01:20.7]} 29. dxc5
{[%clk 0:01:57.6]} 29... Nd5 {[%clk 0:01:21.6]} 30. Rxa6 {[%clk 0:01:50.5]}
30... Nxc3 {[%clk 0:01:21.7]} 31. Ra7+ {[%clk 0:01:48]} 31... Kg6 {[%clk
0:01:21.6]} 32. bxc3 {[%clk 0:01:48.7]} 32... Rb3 {[%clk 0:01:21.2]} 33. c6
{[%clk 0:01:29.7]} 33... Rxc3 {[%clk 0:01:21.2]} 34. c7 {[%clk 0:01:30.3]} 34...
Kf5 {[%clk 0:01:12.4]} 35. Ke2 {[%clk 0:01:30.5]} 35... g5 {[%clk 0:01:10.2]}
36. Kd2 {[%clk 0:01:27.8]} 36... Rc6 {[%clk 0:01:09.2]} 37. hxg5 {[%clk
0:01:25.8]} 37... fxg5 {[%clk 0:01:06.4]} 38. Kd3 {[%clk 0:01:26.2]} 38... Rc1
{[%clk 0:00:56.9]} 39. Kd4 {[%clk 0:01:15.5]} 39... Ke6 {[%clk 0:00:54.5]} 40.
f3 {[%clk 0:01:07.7]} 40... h4 {[%clk 0:00:46.6]} 41. Rb7 {[%clk 0:00:59.7]}
41... Kd7 {[%clk 0:00:34.4]} 42. Rb5 {[%clk 0:00:42.8]} 42... Rg1 {[%clk
0:00:34.6]} 43. Rxg5 {[%clk 0:00:40.4]} 43... h3 {[%clk 0:00:33.9]} 44. Rc5
{[%clk 0:00:39.9]} 44... Kc8 {[%clk 0:00:20.6]} 45. gxh3 {[%clk 0:00:40.1]}
45... Rh1 {[%clk 0:00:20.2]} 46. f4 {[%clk 0:00:39.3]} 46... Rxh3 {[%clk
0:00:20.5]} 47. f5 {[%clk 0:00:39.1]} 47... Rh7 {[%clk 0:00:18.2]} 48. Ke5
{[%clk 0:00:38.4]} 48... Rh1 {[%clk 0:00:14]} 49. Ke6 {[%clk 0:00:38.1]} 49...
Rf1 {[%clk 0:00:14]} 50. f6 {[%clk 0:00:38]} 1-0

[Event "Late-Titled-Tuesday-Blitz-August-29-2023"]
[Site "Chess.com"]
[Date "2023.08.29"]
[Round "5"]
[White "viktorskliarov"]
[Black "cthulhuuu"]
[Result "1-0"]
[WhiteElo "2692"]
[BlackElo "2478"]
[TimeControl "180+1"]
[EndTime "14:54:51 PDT"]
[Termination "viktorskliarov won by checkmate"]

1. e4 {[%clk 0:03:00.9]} 1... d6 {[%clk 0:03:00.5]} 2. d4 {[%clk 0:03:00.8]}
2... Nf6 {[%clk 0:03:01]} 3. Nc3 {[%clk 0:03:00.9]} 3... c6 {[%clk 0:03:01.9]}
4. f3 {[%clk 0:03:01.4]} 4... e5 {[%clk 0:03:01.6]} 5. Be3 {[%clk 0:03:01.9]}
5... Be7 {[%clk 0:03:02.1]} 6. Nge2 {[%clk 0:03:01.5]} 6... O-O {[%clk
0:03:02.4]} 7. Qd2 {[%clk 0:03:01.7]} 7... b5 {[%clk 0:03:02]} 8. g4 {[%clk
0:02:59.8]} 8... Nbd7 {[%clk 0:02:59.2]} 9. Ng3 {[%clk 0:02:59.6]} 9... Nb6
{[%clk 0:02:54.7]} 10. b3 {[%clk 0:02:59.5]} 10... Re8 {[%clk 0:02:50]} 11.
O-O-O {[%clk 0:02:52.9]} 11... Nfd7 {[%clk 0:02:47.3]} 12. Nf5 {[%clk
0:02:51.6]} 12... Bf8 {[%clk 0:02:47.3]} 13. h4 {[%clk 0:02:38.4]} 13... a5
{[%clk 0:02:46.7]} 14. g5 {[%clk 0:02:30.3]} 14... b4 {[%clk 0:02:38]} 15. Ne2
{[%clk 0:02:27.8]} 15... d5 {[%clk 0:02:34.8]} 16. h5 {[%clk 0:02:21]} 16... a4
{[%clk 0:02:31.6]} 17. g6 {[%clk 0:02:08.3]} 17... axb3 {[%clk 0:02:08.6]} 18.
cxb3 {[%clk 0:02:06.9]} 18... Nc4 {[%clk 0:01:51.2]} 19. gxf7+ {[%clk
0:01:49.5]} 19... Kxf7 {[%clk 0:01:49.4]} 20. bxc4 {[%clk 0:01:49.6]} 20... Qa5
{[%clk 0:00:57.2]} 21. Kb1 {[%clk 0:01:44]} 21... Nb6 {[%clk 0:00:51]} 22. Nc1
{[%clk 0:01:39.9]} 22... Bxf5 {[%clk 0:00:47.1]} 23. exf5 {[%clk 0:01:37.2]}
23... Nxc4 {[%clk 0:00:34]} 24. Bxc4 {[%clk 0:01:33.8]} 24... dxc4 {[%clk
0:00:34.9]} 25. h6 {[%clk 0:01:11.7]} 25... Qa3 {[%clk 0:00:21.6]} 26. hxg7
{[%clk 0:00:56]} 26... Bxg7 {[%clk 0:00:22.5]} 27. Rxh7 {[%clk 0:00:54.9]} 27...
b3 {[%clk 0:00:22]} 28. Rxg7+ {[%clk 0:00:37.9]} 28... Kxg7 {[%clk 0:00:22.9]}
29. Qg2+ {[%clk 0:00:37.9]} 29... Kf8 {[%clk 0:00:12.8]} 30. Bh6+ {[%clk
0:00:34.8]} 30... Ke7 {[%clk 0:00:13.3]} 31. Qg7+ {[%clk 0:00:30.1]} 31... Kd6
{[%clk 0:00:14.1]} 32. dxe5+ {[%clk 0:00:27.2]} 32... Kc5 {[%clk 0:00:14.6]} 33.
Be3+ {[%clk 0:00:24.7]} 33... Kb5 {[%clk 0:00:04.2]} 34. Qb7+ {[%clk 0:00:24]}
34... Ka5 {[%clk 0:00:02.4]} 35. Bd2+ {[%clk 0:00:18.9]} 35... Ka4 {[%clk
0:00:03.2]} 36. Qxc6# {[%clk 0:00:18.4]} 1-0

[Event "Late-Titled-Tuesday-Blitz-August-29-2023"]
[Site "Chess.com"]
[Date "2023.08.29"]
[Round "5"]
[White "ArmanGhevondyanchess"]
[Black "Irishchessman16"]
[Result "1-0"]
[WhiteElo "2287"]
[BlackElo "2490"]
[TimeControl "180+1"]
[EndTime "14:54:51 PDT"]
[Termination "ArmanGhevondyanchess won by resignation"]

1. Nf3 {[%clk 0:03:00.9]} 1... d5 {[%clk 0:02:56.2]} 2. g3 {[%clk 0:03:00.9]}
2... Bg4 {[%clk 0:02:55.8]} 3. Bg2 {[%clk 0:03:00.9]} 3... e6 {[%clk 0:02:54.8]}
4. d4 {[%clk 0:03:01]} 4... Nd7 {[%clk 0:02:52.8]} 5. O-O {[%clk 0:03:00.3]}
5... Ngf6 {[%clk 0:02:44]} 6. c4 {[%clk 0:02:57.9]} 6... c6 {[%clk 0:02:43.6]}
7. b3 {[%clk 0:02:56.1]} 7... Bd6 {[%clk 0:02:41.9]} 8. Bb2 {[%clk 0:02:55.1]}
8... O-O {[%clk 0:02:41.7]} 9. Nc3 {[%clk 0:02:54.9]} 9... h6 {[%clk 0:02:36.6]}
10. Qc2 {[%clk 0:02:46.3]} 10... Bf5 {[%clk 0:02:35.4]} 11. Qc1 {[%clk
0:02:40.7]} 11... Ne4 {[%clk 0:02:34.4]} 12. Nd2 {[%clk 0:02:39]} 12... Nxd2
{[%clk 0:02:07.5]} 13. Qxd2 {[%clk 0:02:37.5]} 13... Nf6 {[%clk 0:02:04.6]} 14.
Rad1 {[%clk 0:02:33.3]} 14... a5 {[%clk 0:02:03.5]} 15. Rfe1 {[%clk 0:02:28]}
15... Qe7 {[%clk 0:01:51.9]} 16. e4 {[%clk 0:02:25.9]} 16... dxe4 {[%clk
0:01:51.7]} 17. Nxe4 {[%clk 0:02:25.5]} 17... Nxe4 {[%clk 0:01:52.6]} 18. Bxe4
{[%clk 0:02:26]} 18... Bb4 {[%clk 0:01:50.4]} 19. Bc3 {[%clk 0:02:24.6]} 19...
Bxc3 {[%clk 0:01:50.1]} 20. Qxc3 {[%clk 0:02:24.3]} 20... Bxe4 {[%clk
0:01:50.4]} 21. Rxe4 {[%clk 0:02:24.8]} 21... Qb4 {[%clk 0:01:45.2]} 22. Qe3
{[%clk 0:02:08.8]} 22... a4 {[%clk 0:01:44.1]} 23. d5 {[%clk 0:02:09.1]} 23...
exd5 {[%clk 0:01:37.3]} 24. cxd5 {[%clk 0:02:09.1]} 24... Qd6 {[%clk 0:01:37.9]}
25. bxa4 {[%clk 0:02:00]} 25... cxd5 {[%clk 0:01:36.8]} 26. Red4 {[%clk
0:02:00.2]} 26... Qe6 {[%clk 0:01:34.9]} 27. Qb3 {[%clk 0:01:59]} 27... Qc6
{[%clk 0:01:29.5]} 28. Qb5 {[%clk 0:01:54.1]} 28... Rfc8 {[%clk 0:01:15.7]} 29.
Rxd5 {[%clk 0:01:45.9]} 29... Qxb5 {[%clk 0:01:15.2]} 30. axb5 {[%clk 0:01:42]}
30... Rxa2 {[%clk 0:01:14.4]} 31. Rd8+ {[%clk 0:01:42.2]} 31... Rxd8 {[%clk
0:01:14.8]} 32. Rxd8+ {[%clk 0:01:43]} 32... Kh7 {[%clk 0:01:15.2]} 33. Rb8
{[%clk 0:01:43.9]} 33... Rb2 {[%clk 0:01:09.8]} 34. Rxb7 {[%clk 0:01:43.9]}
34... Kg6 {[%clk 0:01:07.2]} 35. Rb8 {[%clk 0:01:42.4]} 35... f5 {[%clk
0:01:05.3]} 36. Rb6+ {[%clk 0:01:38.6]} 36... Kg5 {[%clk 0:01:04.9]} 37. h4+
{[%clk 0:01:31.7]} 37... Kh5 {[%clk 0:01:02.5]} 38. Kg2 {[%clk 0:01:31.6]} 38...
g5 {[%clk 0:01:02]} 39. hxg5 {[%clk 0:01:32.1]} 39... hxg5 {[%clk 0:01:01.6]}
40. Rb8 {[%clk 0:01:27.5]} 40... Kg4 {[%clk 0:00:58.4]} 41. b6 {[%clk
0:01:26.7]} 41... f4 {[%clk 0:00:46]} 42. gxf4 {[%clk 0:01:26]} 42... Kxf4
{[%clk 0:00:46]} 43. b7 {[%clk 0:01:12.2]} 43... Kg4 {[%clk 0:00:45.3]} 44. Kf1
{[%clk 0:01:10.6]} 44... Rb1+ {[%clk 0:00:41.3]} 45. Ke2 {[%clk 0:01:10.8]}
45... Rb3 {[%clk 0:00:41.9]} 46. Kd2 {[%clk 0:01:10.6]} 46... Rb2+ {[%clk
0:00:42]} 47. Kc3 {[%clk 0:01:10.8]} 47... Rb1 {[%clk 0:00:31.6]} 48. Kd4 {[%clk
0:01:07.1]} 48... Rb2 {[%clk 0:00:30.9]} 49. Ke4 {[%clk 0:01:02]} 49... Rb1
{[%clk 0:00:23.4]} 50. Ke3 {[%clk 0:00:59.4]} 50... Rb2 {[%clk 0:00:22.9]} 51.
Kd3 {[%clk 0:00:56.9]} 51... Rb1 {[%clk 0:00:14.7]} 52. Ke2 {[%clk 0:00:57.2]}
52... Rb2+ {[%clk 0:00:14]} 53. Kf1 {[%clk 0:00:57.8]} 53... Rb3 {[%clk
0:00:12.6]} 54. Kg1 {[%clk 0:00:56.5]} 54... Rb2 {[%clk 0:00:10.8]} 55. Kg2
{[%clk 0:00:56.3]} 55... Rb3 {[%clk 0:00:05.4]} 56. f3+ {[%clk 0:00:55.7]} 56...
Rxf3 {[%clk 0:00:04.8]} 57. Rc8 {[%clk 0:00:54.7]} 1-0

[Event "Late-Titled-Tuesday-Blitz-August-29-2023"]
[Site "Chess.com"]
[Date "2023.08.29"]
[Round "5"]
[White "JoshuaGK27"]
[Black "szachmistrz2500"]
[Result "1/2-1/2"]
[WhiteElo "2403"]
[BlackElo "2488"]
[TimeControl "180+1"]
[EndTime "14:54:56 PDT"]
[Termination "Game drawn by stalemate"]

1. d4 {[%clk 0:03:00.9]} 1... Nf6 {[%clk 0:02:57.6]} 2. c4 {[%clk 0:03:00.7]}
2... g6 {[%clk 0:02:55.9]} 3. Nc3 {[%clk 0:03:00.4]} 3... Bg7 {[%clk 0:02:56.1]}
4. e4 {[%clk 0:03:00.2]} 4... d6 {[%clk 0:02:56.2]} 5. Be2 {[%clk 0:03:00.6]}
5... e5 {[%clk 0:02:52.7]} 6. d5 {[%clk 0:02:58.2]} 6... Nbd7 {[%clk 0:02:49.1]}
7. Be3 {[%clk 0:02:47.8]} 7... Nc5 {[%clk 0:02:48]} 8. Qc2 {[%clk 0:02:47.8]}
8... a5 {[%clk 0:02:47.7]} 9. h4 {[%clk 0:02:30.1]} 9... h6 {[%clk 0:02:39.4]}
10. Nf3 {[%clk 0:02:10.3]} 10... Ncxe4 {[%clk 0:02:29.9]} 11. Nxe4 {[%clk
0:02:02.4]} 11... Nxe4 {[%clk 0:02:29.9]} 12. Nxe5 {[%clk 0:01:43.2]} 12... Bxe5
{[%clk 0:02:25.2]} 13. Qxe4 {[%clk 0:01:40.9]} 13... Bf5 {[%clk 0:02:24.5]} 14.
Qf3 {[%clk 0:01:40.6]} 14... Bxb2 {[%clk 0:02:21.3]} 15. Rd1 {[%clk 0:01:13.5]}
15... Bc3+ {[%clk 0:02:20.9]} 16. Kf1 {[%clk 0:01:05.3]} 16... Qf6 {[%clk
0:02:20]} 17. h5 {[%clk 0:01:02]} 17... g5 {[%clk 0:02:17.5]} 18. g4 {[%clk
0:00:35.8]} 18... Bh7 {[%clk 0:02:12.1]} 19. Qxf6 {[%clk 0:00:20.6]} 19... Bxf6
{[%clk 0:02:11.8]} 20. Rh3 {[%clk 0:00:19.7]} 20... O-O {[%clk 0:02:04.4]} 21.
Bd3 {[%clk 0:00:17.5]} 21... Bxd3+ {[%clk 0:01:58.9]} 22. Rxd3 {[%clk
0:00:18.4]} 22... b6 {[%clk 0:01:56.5]} 23. Rf3 {[%clk 0:00:17.9]} 23... Kg7
{[%clk 0:01:54.4]} 24. Rf5 {[%clk 0:00:16.2]} 24... Be5 {[%clk 0:01:51.1]} 25.
Kg2 {[%clk 0:00:13.1]} 25... a4 {[%clk 0:01:50]} 26. Bd4 {[%clk 0:00:09.6]}
26... f6 {[%clk 0:01:49.4]} 27. Be3 {[%clk 0:00:08.7]} 27... a3 {[%clk
0:01:49.2]} 28. f4 {[%clk 0:00:08.3]} 28... gxf4 {[%clk 0:01:46.2]} 29. Bxf4
{[%clk 0:00:09.2]} 29... Ra4 {[%clk 0:01:46.3]} 30. Bxe5 {[%clk 0:00:08.2]}
30... fxe5 {[%clk 0:01:45.1]} 31. Rxf8 {[%clk 0:00:07.4]} 31... Kxf8 {[%clk
0:01:45.3]} 32. Rc3 {[%clk 0:00:07.8]} 32... Rb4 {[%clk 0:01:38.9]} 33. Kf3
{[%clk 0:00:06.6]} 33... Kf7 {[%clk 0:01:36.2]} 34. Ke4 {[%clk 0:00:06.2]} 34...
Kf6 {[%clk 0:01:28.9]} 35. Kd3 {[%clk 0:00:05.3]} 35... Kg5 {[%clk 0:01:28.5]}
36. Rxa3 {[%clk 0:00:05.2]} 36... Kxg4 {[%clk 0:01:28.6]} 37. Ra7 {[%clk
0:00:05.3]} 37... Rb2 {[%clk 0:01:26.7]} 38. Rxc7 {[%clk 0:00:05.3]} 38... Rxa2
{[%clk 0:01:25.3]} 39. Rc6 {[%clk 0:00:05.6]} 39... Ra3+ {[%clk 0:01:25.6]} 40.
Kc2 {[%clk 0:00:05.6]} 40... e4 {[%clk 0:01:18.2]} 41. Rxd6 {[%clk 0:00:05.7]}
41... e3 {[%clk 0:01:18.5]} 42. Kd1 {[%clk 0:00:05.6]} 42... Kf3 {[%clk
0:01:18.1]} 43. Rf6+ {[%clk 0:00:06.2]} 43... Ke4 {[%clk 0:01:18.2]} 44. d6
{[%clk 0:00:05.8]} 44... Kd3 {[%clk 0:01:18.3]} 45. Kc1 {[%clk 0:00:04]} 45...
Ra1+ {[%clk 0:01:10.8]} 46. Kb2 {[%clk 0:00:04.1]} 46... Ra7 {[%clk 0:01:11.7]}
47. Re6 {[%clk 0:00:03.2]} 47... Rd7 {[%clk 0:01:10.6]} 48. Kb3 {[%clk
0:00:01.6]} 48... e2 {[%clk 0:01:10.7]} 49. Kb4 {[%clk 0:00:01]} 49... Kd2
{[%clk 0:01:10.8]} 50. c5 {[%clk 0:00:01.1]} 50... bxc5+ {[%clk 0:01:07.9]} 51.
Kxc5 {[%clk 0:00:02]} 51... e1=Q {[%clk 0:01:05.1]} 52. Rxe1 {[%clk 0:00:02.9]}
52... Kxe1 {[%clk 0:01:05]} 53. Kc6 {[%clk 0:00:03.8]} 53... Rd8 {[%clk
0:01:04.3]} 54. d7 {[%clk 0:00:04.1]} 54... Kf2 {[%clk 0:01:03.2]} 55. Kc7
{[%clk 0:00:04.8]} 55... Rg8 {[%clk 0:01:03.1]} 56. d8=Q {[%clk 0:00:04.2]}
56... Rxd8 {[%clk 0:01:03.1]} 57. Kxd8 {[%clk 0:00:05.1]} 57... Kg3 {[%clk
0:01:03.7]} 58. Ke7 {[%clk 0:00:05.6]} 58... Kg4 {[%clk 0:01:04]} 59. Kf6 {[%clk
0:00:05.6]} 59... Kxh5 {[%clk 0:01:04.4]} 60. Kf5 {[%clk 0:00:06.4]} 60... Kh4
{[%clk 0:01:04.9]} 61. Kf4 {[%clk 0:00:07]} 61... Kh3 {[%clk 0:01:04.6]} 62. Kf3
{[%clk 0:00:07.5]} 62... h5 {[%clk 0:01:05.1]} 63. Kf2 {[%clk 0:00:06.5]} 63...
h4 {[%clk 0:01:06]} 64. Kf3 {[%clk 0:00:06.5]} 64... Kh2 {[%clk 0:01:06.3]} 65.
Kf2 {[%clk 0:00:07.2]} 65... h3 {[%clk 0:01:07.2]} 66. Kf1 {[%clk 0:00:06.6]}
66... Kh1 {[%clk 0:01:07.4]} 67. Kf2 {[%clk 0:00:06.9]} 67... Kh2 {[%clk
0:01:08.3]} 68. Kf1 {[%clk 0:00:07.2]} 68... Kh1 {[%clk 0:01:08.6]} 69. Kf2
{[%clk 0:00:07.5]} 69... h2 {[%clk 0:01:09.1]} 70. Kf1 {[%clk 0:00:07.6]}
1/2-1/2

[Event "Late-Titled-Tuesday-Blitz-August-29-2023"]
[Site "Chess.com"]
[Date "2023.08.29"]
[Round "5"]
[White "NelsonLinda"]
[Black "Grebeniuk-S"]
[Result "0-1"]
[WhiteElo "2460"]
[BlackElo "2619"]
[TimeControl "180+1"]
[EndTime "14:54:58 PDT"]
[Termination "Grebeniuk-S won by checkmate"]

1. d4 {[%clk 0:02:58.9]} 1... f5 {[%clk 0:02:59.8]} 2. g3 {[%clk 0:02:55.3]}
2... Nf6 {[%clk 0:02:59.7]} 3. Nd2 {[%clk 0:02:55.3]} 3... d6 {[%clk 0:03:00.6]}
4. Bg2 {[%clk 0:02:27.7]} 4... g6 {[%clk 0:03:00.5]} 5. e4 {[%clk 0:02:27.1]}
5... fxe4 {[%clk 0:03:01.2]} 6. Nxe4 {[%clk 0:02:28]} 6... Bg7 {[%clk
0:03:01.5]} 7. Nxf6+ {[%clk 0:02:23.2]} 7... exf6 {[%clk 0:02:56.3]} 8. Be3
{[%clk 0:02:20.2]} 8... O-O {[%clk 0:02:55.8]} 9. Qd2 {[%clk 0:02:20.5]} 9... d5
{[%clk 0:02:54]} 10. O-O-O {[%clk 0:02:19.6]} 10... c6 {[%clk 0:02:50.3]} 11. h4
{[%clk 0:02:19.8]} 11... Re8 {[%clk 0:02:35.2]} 12. h5 {[%clk 0:02:18.4]} 12...
g5 {[%clk 0:02:35.7]} 13. h6 {[%clk 0:02:15.9]} 13... Bf8 {[%clk 0:02:35.7]} 14.
Nf3 {[%clk 0:01:53.3]} 14... Bf5 {[%clk 0:02:32.6]} 15. Rdg1 {[%clk 0:01:47]}
15... Nd7 {[%clk 0:02:30.4]} 16. g4 {[%clk 0:01:44.3]} 16... Bg6 {[%clk
0:02:22.9]} 17. Qd1 {[%clk 0:01:36.8]} 17... Bd6 {[%clk 0:02:13.7]} 18. Ne1
{[%clk 0:01:35.9]} 18... Nf8 {[%clk 0:02:12.5]} 19. Nd3 {[%clk 0:01:34.5]} 19...
Ne6 {[%clk 0:02:12.6]} 20. Bf1 {[%clk 0:01:14.2]} 20... Qc7 {[%clk 0:02:12]} 21.
Nc5 {[%clk 0:01:12.9]} 21... Nxc5 {[%clk 0:02:04.3]} 22. dxc5 {[%clk 0:01:13.8]}
22... Bf4 {[%clk 0:02:05.2]} 23. Rh3 {[%clk 0:01:12.2]} 23... Bxe3+ {[%clk
0:01:55.3]} 24. fxe3 {[%clk 0:01:12.5]} 24... Qa5 {[%clk 0:01:39.8]} 25. Bd3
{[%clk 0:01:07.5]} 25... Qxa2 {[%clk 0:01:25.3]} 26. Qf3 {[%clk 0:00:38.7]}
26... Re6 {[%clk 0:00:35.5]} 27. Bxg6 {[%clk 0:00:38.1]} 27... hxg6 {[%clk
0:00:35.3]} 28. h7+ {[%clk 0:00:38.1]} 28... Kh8 {[%clk 0:00:34.7]} 29. Rgh1
{[%clk 0:00:32.2]} 29... Qa1+ {[%clk 0:00:30.9]} 30. Kd2 {[%clk 0:00:30.6]}
30... Qxb2 {[%clk 0:00:31.8]} 31. Rh6 {[%clk 0:00:29.1]} 31... Qb4+ {[%clk
0:00:24.4]} 32. Kc1 {[%clk 0:00:26]} 32... Qe4 {[%clk 0:00:17.3]} 33. Qf1 {[%clk
0:00:07.4]} 33... a5 {[%clk 0:00:11.9]} 34. R1h3 {[%clk 0:00:06.4]} 34... a4
{[%clk 0:00:11.2]} 35. Rf3 {[%clk 0:00:06.9]} 35... Rf8 {[%clk 0:00:09.1]} 36.
Rhh3 {[%clk 0:00:02.3]} 36... a3 {[%clk 0:00:09]} 37. Kb1 {[%clk 0:00:01.7]}
37... Qb4+ {[%clk 0:00:08.8]} 38. Ka1 {[%clk 0:00:01.8]} 38... Qb2# {[%clk
0:00:09]} 0-1

[Event "Late-Titled-Tuesday-Blitz-August-29-2023"]
[Site "Chess.com"]
[Date "2023.08.29"]
[Round "5"]
[White "JerMorGurgeh"]
[Black "MBA_CHESS_2021"]
[Result "0-1"]
[WhiteElo "2403"]
[BlackElo "2292"]
[TimeControl "180+1"]
[EndTime "14:54:59 PDT"]
[Termination "MBA_CHESS_2021 won on time"]

1. d4 {[%clk 0:03:00.9]} 1... g6 {[%clk 0:02:57.9]} 2. Nf3 {[%clk 0:03:00.1]}
2... Bg7 {[%clk 0:02:58.5]} 3. c4 {[%clk 0:02:59.8]} 3... b6 {[%clk 0:02:58.2]}
4. g3 {[%clk 0:02:59.1]} 4... Bb7 {[%clk 0:02:58.8]} 5. Bg2 {[%clk 0:02:58.5]}
5... Nf6 {[%clk 0:02:59.4]} 6. d5 {[%clk 0:02:50.9]} 6... O-O {[%clk 0:02:57.2]}
7. Nc3 {[%clk 0:02:49.6]} 7... e6 {[%clk 0:02:53.8]} 8. O-O {[%clk 0:02:41.2]}
8... exd5 {[%clk 0:02:51]} 9. cxd5 {[%clk 0:02:39.2]} 9... d6 {[%clk 0:02:50.9]}
10. Nd4 {[%clk 0:02:36.2]} 10... Nbd7 {[%clk 0:02:45.4]} 11. Bf4 {[%clk
0:02:25.6]} 11... Re8 {[%clk 0:02:37.6]} 12. Rc1 {[%clk 0:02:20.2]} 12... a6
{[%clk 0:02:35.6]} 13. a4 {[%clk 0:02:18.1]} 13... h6 {[%clk 0:02:23.7]} 14. e4
{[%clk 0:02:06.1]} 14... g5 {[%clk 0:02:20.9]} 15. Be3 {[%clk 0:02:03.3]} 15...
Nc5 {[%clk 0:02:13.4]} 16. Qc2 {[%clk 0:01:57.3]} 16... a5 {[%clk 0:02:11]} 17.
Nf5 {[%clk 0:01:55]} 17... Bf8 {[%clk 0:01:58.5]} 18. Bd4 {[%clk 0:01:49.4]}
18... Bc8 {[%clk 0:01:54.8]} 19. h3 {[%clk 0:01:39.3]} 19... Bxf5 {[%clk
0:01:51.2]} 20. exf5 {[%clk 0:01:37.3]} 20... Bg7 {[%clk 0:01:51]} 21. g4 {[%clk
0:01:33.3]} 21... Qd7 {[%clk 0:01:50.7]} 22. Rfd1 {[%clk 0:01:19.5]} 22... Re7
{[%clk 0:01:43.5]} 23. Nb5 {[%clk 0:01:13.9]} 23... Ne8 {[%clk 0:01:33.8]} 24.
Bxg7 {[%clk 0:01:11.8]} 24... Kxg7 {[%clk 0:01:33.3]} 25. Nd4 {[%clk 0:00:54.3]}
25... Nf6 {[%clk 0:01:21.1]} 26. b3 {[%clk 0:00:51.6]} 26... Rae8 {[%clk
0:01:19.5]} 27. Qb2 {[%clk 0:00:46.5]} 27... Re5 {[%clk 0:01:13.5]} 28. Rf1
{[%clk 0:00:36.4]} 28... Nd3 {[%clk 0:01:07]} 29. Qc3 {[%clk 0:00:36.2]} 29...
Nxc1 {[%clk 0:01:06.8]} 30. Rxc1 {[%clk 0:00:36.8]} 30... Kg8 {[%clk 0:00:55]}
31. Nc6 {[%clk 0:00:34]} 31... Nxd5 {[%clk 0:00:25.8]} 32. Qd2 {[%clk
0:00:31.4]} 32... Nf4 {[%clk 0:00:22.2]} 33. Nxe5 {[%clk 0:00:29.7]} 33... Rxe5
{[%clk 0:00:22]} 34. Bf1 {[%clk 0:00:27.9]} 34... Qe7 {[%clk 0:00:21.1]} 35. Rc4
{[%clk 0:00:26.3]} 35... Re1 {[%clk 0:00:20.3]} 36. Rxf4 {[%clk 0:00:22.3]}
36... gxf4 {[%clk 0:00:20]} 37. Qxf4 {[%clk 0:00:23.1]} 37... Qe2 {[%clk
0:00:19.9]} 38. Kg2 {[%clk 0:00:13.3]} 38... Qxf1+ {[%clk 0:00:19.4]} 39. Kg3
{[%clk 0:00:13.7]} 39... Re2 {[%clk 0:00:07.8]} 40. f6 {[%clk 0:00:10.4]} 40...
Qg1+ {[%clk 0:00:07.4]} 0-1